fUSD/lending_fUSD_20260309
["ID","MTS","AMOUNT","RATE_DAILY","PERIOD"]
[408053760,1773076243443,-4493.10732409,0.000199,2]
[408053761,1773076243453,-13910.98046034,0.000199,2]
[408053762,1773076243462,-935.13255853,0.000199,2]
[408053764,1773076243471,-171.24,0.00019908,2]
[408053765,1773076243480,-380.3,0.00019913,2]
[408053767,1773076243489,-250.0,0.00019914,2]
[408053769,1773076243501,-179.0,0.00019926,2]
[408053771,1773076243509,-587.0,0.00019947,2]
[408053774,1773076243519,-1335.0,0.00019947,2]
[408053776,1773076243529,-500.0,0.00019947,2]
[408053777,1773076243538,-500.0,0.00019947,2]
[408053780,1773076243547,-500.0,0.00019947,2]
[408053782,1773076243557,-512.0,0.00019947,2]
[408053784,1773076243566,-160.57620522,0.00019947,2]
[408053786,1773076243576,-517.0,0.00019947,2]
[408053788,1773076243585,-200.0,0.00019947,2]
[408053790,1773076243595,-483.0,0.00019947,2]
[408053792,1773076243605,-250.0,0.00019947,2]
[408053794,1773076243614,-380.3,0.00019956,2]
[408053795,1773076243623,-150.0,0.00019963,2]
[408053797,1773076243633,-200.0,0.00019963,2]
[408053799,1773076243642,-250.0,0.00019963,2]
[408053801,1773076243650,-235.379,0.00019963,2]
[408053802,1773076243659,-219.836,0.00019963,2]
[408053804,1773076243668,-161.49,0.00019963,2]
[408053806,1773076243678,-250.0,0.00019963,2]
[408053807,1773076243687,-150.139,0.00019963,2]
[408053808,1773076243696,-192.833,0.00019963,2]
[408053809,1773076243705,-165.46,0.00019963,2]
[408053810,1773076243714,-214.125,0.00019963,2]
[408053811,1773076243723,-250.0,0.00019963,2]
[408053812,1773076243734,-236.839,0.00019963,2]
[408053813,1773076243742,-177.0,0.00019963,2]
[408053814,1773076243754,-153.45374546,0.00019963,2]
[408053815,1773076243762,-250.0,0.00019963,2]
[408053816,1773076243772,-1000.0,0.00019963,2]
[408053817,1773076243781,-160.0,0.00019972,2]
[408053818,1773076243790,-185.52323359,0.00019997,2]
[408053819,1773076243799,-151.0,0.00019997,2]
[408053820,1773076243808,-300.0,0.00019999,2]
[408053821,1773076243817,-300.0,0.00019999,2]
[408053822,1773076243826,-156.17,0.00019999,2]
[408053823,1773076243835,-582.46,0.00019999,2]
[408053824,1773076243844,-582.46,0.00019999,2]
[408053825,1773076243853,-582.46,0.00019999,2]
[408053826,1773076243862,-582.46,0.00019999,2]
[408053827,1773076243871,-582.46,0.00019999,2]
[408053828,1773076243880,-582.46,0.00019999,2]
[408053829,1773076243889,-582.46,0.00019999,2]
[408053830,1773076243898,-582.46,0.00019999,2]
[408053831,1773076243907,-582.46,0.00019999,2]
[408053832,1773076243916,-582.46,0.00019999,2]
[408053833,1773076243925,-582.46,0.00019999,2]
[408053834,1773076243934,-582.46,0.00019999,2]
[408053835,1773076243943,-582.46,0.00019999,2]
[408053836,1773076243954,-582.46,0.00019999,2]
[408053837,1773076243963,-582.46,0.00019999,2]
[408053838,1773076243972,-582.46,0.00019999,2]
[408053839,1773076243981,-582.46,0.00019999,2]
[408053840,1773076243990,-582.46,0.00019999,2]
[408053841,1773076244001,-582.46,0.00019999,2]
[408053842,1773076244010,-582.46,0.00019999,2]
[408053843,1773076244019,-582.46,0.00019999,2]
[408053844,1773076244029,-582.46,0.00019999,2]
[408053845,1773076244038,-582.53460695,0.00019999,2]
[408053846,1773076244049,-500.0,0.00019999,2]
[408053847,1773076244058,-500.0,0.00019999,2]
[408053848,1773076244069,-500.0,0.00019999,2]
[408053849,1773076244078,-500.0,0.00019999,2]
[408053850,1773076244087,-187.11525039,0.00019999,2]
[408053851,1773076244097,-500.0,0.00019999,2]
[408053852,1773076244109,-355.79104099,0.00019999,2]
[408053853,1773076244122,-2003.0,0.00019999,2]
[408053854,1773076244131,-2506.0,0.0002,2]
[408053855,1773076244140,-653387.56575271,0.0002,2]
[408053856,1773076244862,-1098.39992847,0.0002,2]
[408053857,1773076244889,-150.0,0.00019673,2]
[408053858,1773076244898,-4107.57618733,0.0002,2]
[408053859,1773076244910,-6777.54686845,0.0002,2]
[408053860,1773076244929,-1023.24592403,0.0002,2]
[408053861,1773076244943,-410.5488391,0.0002,2]
[408053862,1773076245527,-500.0,0.00019673,2]
[408053863,1773076245536,-250.19393605,0.00019728,2]
[408053864,1773076245545,-580.0,0.00019728,2]
[408053865,1773076245554,-689.46764915,0.000199,2]
[408053866,1773076245563,-8611.35023037,0.0002,2]
[408053867,1773076245581,-3956.08358099,0.0002,2]
[408053868,1773076245593,-937.70955075,0.0002,2]
[408053869,1773076245604,-303.81518612,0.0002,2]
[408053870,1773076245615,-6353.27771285,0.0002,2]
[408053871,1773076245626,-35500.25194943,0.0002,2]
[408053875,1773076245909,-1344.95210205,0.00019625,2]
[408053876,1773076245918,-150.0,0.00019673,2]
[408053877,1773076245928,-150.0,0.00019673,2]
[408053878,1773076245937,-232.79888752,0.00019673,2]
[408053880,1773076245946,-150.0,0.00019728,2]
[408053882,1773076245955,-150.0,0.00019783,2]
[408053883,1773076245965,-176.29568284,0.00019837,2]
[408053885,1773076245974,-33179.01446571,0.0002,2]
[408053887,1773076247623,-1077790.69753603,0.0002,2]
[408053888,1773076247632,-25714.60926402,0.0002,2]
[408053889,1773076247642,-4236674.86142385,0.0002,2]
[408053890,1773076247657,-421.9602,0.0002,2]
[408053891,1773076247668,-41758.94812058,0.0002,2]
[408053892,1773076247679,-45242.49709106,0.0002,2]
[408053893,1773076296843,602.73,0.0001415,2]
[408053894,1773076612183,174.37,0.00014,2]
[408053895,1773076618290,393.69,9.124e-05,2]
[408053896,1773076618545,393.69,9.604e-05,2]
[408053897,1773076618770,393.69,0.00010084,2]
[408053898,1773076618964,393.69,0.00010564,2]
[408053899,1773076619384,393.69,0.00011045,2]
[408053900,1773076619670,393.69,0.00011525,2]
[408053901,1773076619967,393.69,0.00012005,2]
[408053902,1773076620177,393.69,0.00012485,2]
[408053903,1773076620748,393.69,0.00012965,2]
[408053904,1773076620856,393.69,0.00013446,2]
[408053905,1773076621033,393.69,0.00013926,2]
[408053907,1773077089429,168.86,0.00014,2]
[408053908,1773077322480,644.0,0.0002,120]
[408053923,1773077432061,-393.69,0.00014406,2]
[408053925,1773077432070,-775.94463926,0.00014659,2]
[408053931,1773077432115,-1334.30838036,0.00014659,2]
[408053932,1773077432124,-393.69,0.00014886,2]
[408053934,1773077432133,-250.0,0.00015,2]
[408053937,1773077432144,-393.69,0.00015366,2]
[408053938,1773077432153,-1290.04,0.000155,2]
[408053939,1773077432162,-393.69,0.00015847,2]
[408053940,1773077432171,-250.0,0.00015847,2]
[408053942,1773077432181,-300.0,0.00015847,2]
[408053944,1773077432190,-393.69,0.00016327,2]
[408053946,1773077432199,-152.0,0.00016574,3]
[408053948,1773077432208,-393.69,0.00016807,2]
[408053950,1773077432217,-166.66,0.00016907,2]
[408053952,1773077432227,-300.0,0.00017,2]
[408053954,1773077432236,-506.0,0.00017,2]
[408053956,1773077432245,-504.99997,0.00017,2]
[408053958,1773077432254,-162.42681283,0.00017036,7]
[408053960,1773077432263,-166.66,0.00017263,2]
[408053962,1773077432272,-393.69,0.00017287,2]
[408053964,1773077432282,-1859.75,0.00017295,2]
[408053965,1773077432292,-2000.0,0.00017363,2]
[408053966,1773077432302,-500.0,0.00017397,2]
[408053967,1773077432312,-152.0,0.00017503,4]
[408053968,1773077432323,-500.16027375,0.00017504,2]
[408053969,1773077432335,-462.11065713,0.00017504,2]
[408053970,1773077432370,-890.14906912,0.00017504,2]
[408053971,1773077432379,-166.66,0.00017619,2]
[408053972,1773077432388,-200.0,0.00017724,2]
[408053974,1773077432397,-198.62387425,0.00017724,2]
[408053976,1773077432407,-526.0,0.00017734,2]
[408053977,1773077432416,-18.56705664,0.00017734,2]
[408053978,1773077432428,-1400.0,0.00017734,2]
[408053979,1773077432439,-510.67063738,0.00017734,2]
[408053980,1773077432451,-394.08230598,0.00017734,2]
[408053981,1773077432461,-393.69,0.00017767,2]
[408053982,1773077432473,-731.01965214,0.00017808,2]
[408053983,1773077432485,-70.95433418,0.00017808,2]
[408053984,1773077432494,-198.62387425,0.00017824,2]
[408053985,1773077432504,-198.62387425,0.00017924,2]
[408053986,1773077432515,-108.9165219,0.00017975,2]
[408053987,1773077432526,-57.7434781,0.00017975,2]
[408053988,1773077432537,-199.25,0.00018,4]
[408053989,1773077432549,-200.479585,0.00018,2]
[408053990,1773077432559,-166.67,0.00018002,2]
[408053991,1773077432569,-393.69,0.00018248,2]
[408053992,1773077432578,-88.02994745,0.00018331,2]
[408053993,1773077432591,-78.63005255,0.00018331,2]
[408053994,1773077432600,-501.59700885,0.00018356,7]
[408053995,1773077432611,-98.40299115,0.00018356,7]
[408053996,1773077432620,-500.0,0.00018356,7]
[408053997,1773077432630,-500.0,0.00018356,7]
[408053998,1773077432640,-500.0,0.00018367,2]
[408053999,1773077432650,-847.0,0.000184,2]
[408054000,1773077432660,-152.0,0.00018431,5]
[408054001,1773077432670,-166.66,0.00018687,2]
[408054002,1773077432679,-506.0,0.00018703,3]
[408054003,1773077432690,-1263.57,0.00018862,2]
[408054004,1773077432700,-166.67,0.00018993,2]
[408054005,1773077432711,-846.14658564,0.00018999,2]
[408054006,1773077432721,-250.0,0.00018999,2]
[408054007,1773077432731,-1000.0,0.00018999,2]
[408054008,1773077432741,-6103.51012733,0.00018999,2]
[408054009,1773077432753,-1896.48987267,0.00018999,2]
[408054010,1773077432762,-250.0,0.00018999,2]
[408054011,1773077432772,-1074.71509353,0.00018999,2]
[408054012,1773077432781,-174.61919141,0.00018999,2]
[408054013,1773077432791,-736.1,0.00019178,2]
[408054014,1773077432800,-1000.0,0.00019178,2]
[408054015,1773077432810,-250.0,0.00019257,2]
[408054016,1773077432820,-152.0,0.00019359,6]
[408054017,1773077432829,-847.0,0.0001936,2]
[408054018,1773077432838,-3863.5508,0.00019433,2]
[408054019,1773077432848,-302.2226,0.00019433,2]
[408054020,1773077432858,-10056.2779,0.00019433,2]
[408054021,1773077432867,-2500.0,0.00019433,2]
[408054022,1773077432877,-600.0,0.00019452,7]
[408054023,1773077432886,-500.0,0.00019452,7]
[408054024,1773077432896,-1000.0,0.00019452,2]
[408054025,1773077432905,-259.8159715,0.00019474,2]
[408054026,1773077432918,-2000.0,0.000195,2]
[408054027,1773077432928,-221.58,0.00019521,2]
[408054028,1773077432937,-500.0,0.00019532,2]
[408054029,1773077432946,-500.0,0.00019532,2]
[408054030,1773077432957,-592.67764154,0.00019532,2]
[408054031,1773077432966,-277.12479045,0.00019532,2]
[408054032,1773077432975,-633.6177226,0.00019532,2]
[408054033,1773077432985,-500.0,0.00019532,2]
[408054034,1773077432994,-329.99137082,0.00019532,2]
[408054035,1773077433004,-500.0,0.00019532,2]
[408054036,1773077433013,-500.0,0.00019532,2]
[408054037,1773077433023,-13559.0947,0.00019533,2]
[408054038,1773077433032,-1000.0,0.00019533,2]
[408054039,1773077433042,-213801.3516,0.00019533,2]
[408054040,1773077433052,-2000.0,0.00019533,2]
[408054041,1773077433061,-1000.0,0.00019547,2]
[408054042,1773077433070,-181.08010149,0.00019547,2]
[408054043,1773077433080,-1507.15763901,0.000196,2]
[408054044,1773077433089,-168.0,0.00019601,2]
[408054045,1773077433098,-178.77,0.00019618,2]
[408054046,1773077433108,-1176.83308932,0.00019628,2]
[408054047,1773077433117,-1176.83308928,0.00019667,2]
[408054048,1773077433126,-500.0,0.00019669,2]
[408054049,1773077433136,-500.0,0.00019669,2]
[408054050,1773077433146,-500.0,0.00019673,2]
[408054051,1773077433156,-500.0,0.00019673,2]
[408054052,1773077433165,-500.0,0.00019673,2]
[408054053,1773077433174,-150.0,0.00019673,2]
[408054054,1773077433184,-1001.0,0.00019673,2]
[408054055,1773077433193,-856.0,0.00019673,2]
[408054056,1773077433202,-484.0,0.00019673,2]
[408054057,1773077433212,-150.0,0.00019673,2]
[408054058,1773077433221,-500.0,0.00019673,2]
[408054059,1773077433230,-500.0,0.00019673,2]
[408054060,1773077433239,-500.0,0.00019673,2]
[408054061,1773077433249,-172.87392778,0.00019688,2]
[408054062,1773077433259,-1176.83308928,0.00019706,2]
[408054063,1773077433268,-456.17240641,0.00019722,2]
[408054064,1773077433278,-1000.0,0.00019726,2]
[408054065,1773077433287,-500.0,0.00019728,2]
[408054066,1773077433296,-500.0,0.00019728,2]
[408054067,1773077433305,-500.0,0.00019728,2]
[408054068,1773077433314,-150.0,0.00019728,2]
[408054069,1773077433325,-1001.0,0.00019728,2]
[408054070,1773077433335,-484.0,0.00019728,2]
[408054071,1773077433344,-150.0,0.00019728,2]
[408054072,1773077433353,-856.0,0.00019728,2]
[408054073,1773077433363,-500.0,0.00019728,2]
[408054074,1773077433372,-500.0,0.00019728,2]
[408054075,1773077433381,-500.0,0.00019728,2]
[408054076,1773077433391,-1176.83308928,0.00019745,2]
[408054077,1773077433400,-456.17240641,0.00019767,2]
[408054078,1773077433410,-623.76158024,0.00019776,2]
[408054079,1773077433420,-500.0,0.00019783,2]
[408054080,1773077433429,-170.0,0.00019783,2]
[408054081,1773077433438,-500.0,0.00019783,2]
[408054082,1773077433448,-150.0,0.00019783,2]
[408054083,1773077433457,-1001.0,0.00019783,2]
[408054084,1773077433466,-484.0,0.00019783,2]
[408054085,1773077433479,-150.0,0.00019783,2]
[408054086,1773077433488,-856.0,0.00019783,2]
[408054087,1773077433498,-500.0,0.00019783,2]
[408054088,1773077433508,-500.0,0.00019783,2]
[408054089,1773077433520,-500.0,0.00019783,2]
[408054090,1773077433530,-1176.83308928,0.00019783,2]
[408054091,1773077433540,-623.76158024,0.0001979,2]
[408054092,1773077433552,-221.58,0.00019795,2]
[408054093,1773077433561,-2000.0,0.000198,2]
[408054094,1773077433572,-2000.0,0.000198,2]
[408054095,1773077433582,-623.76158024,0.00019804,2]
[408054096,1773077433591,-456.17240641,0.00019811,2]
[408054097,1773077433601,-623.76158024,0.00019817,2]
[408054098,1773077433611,-1176.83308928,0.00019822,2]
[408054099,1773077433620,-623.76158024,0.00019831,2]
[408054100,1773077433629,-1478.12182736,0.00019833,2]
[408054102,1773077438184,-2378.15217264,0.00019833,2]
[408054103,1773077438194,-173.225,0.00019833,2]
[408054104,1773077438204,-264.25420864,0.00019833,5]
[408054105,1773077438215,-282.74579136,0.00019833,5]
[408054106,1773077438224,-6.45633824,0.00019837,2]
[408054107,1773077438239,-493.54366176,0.00019837,2]
[408054108,1773077438248,-150.0,0.00019837,2]
[408054109,1773077438258,-182.34819036,0.00019837,2]
[408054110,1773077438269,-818.65180964,0.00019837,2]
[408054111,1773077438278,-484.0,0.00019837,2]
[408054112,1773077438287,-150.0,0.00019837,2]
[408054113,1773077438300,-856.0,0.00019837,2]
[408054114,1773077438310,-500.0,0.00019837,2]
[408054115,1773077438319,-314.21859958,0.00019837,2]
[408054116,1773077438345,-185.78140042,0.00019837,2]
[408054117,1773077438355,-500.0,0.00019837,2]
[408054118,1773077438365,-623.76158024,0.00019845,2]
[408054119,1773077438374,-456.17240641,0.00019856,2]
[408054120,1773077438383,-623.76158024,0.00019859,2]
[408054121,1773077438392,-1176.83308928,0.00019861,2]
[408054122,1773077438402,-43474.9499,0.0001987,2]
[408054123,1773077438411,-623.76158024,0.00019872,2]
[408054124,1773077438420,-623.76158024,0.00019886,2]
[408054125,1773077438429,-178.77,0.0001989,2]
[408054126,1773077438439,-500.0,0.00019892,2]
[408054127,1773077438448,-150.0,0.00019892,2]
[408054128,1773077438458,-1001.0,0.00019892,2]
[408054130,1773077438468,-484.0,0.00019892,2]
[408054131,1773077438481,-856.0,0.00019892,2]
[408054132,1773077438490,-500.0,0.00019892,2]
[408054133,1773077438499,-500.0,0.00019892,2]
[408054134,1773077438511,-500.0,0.00019892,2]
[408054136,1773077438520,-607.78,0.00019899,2]
[408054138,1773077438529,-2810.77297924,0.000199,2]
[408054139,1773077438538,-456.17240641,0.000199,2]
[408054140,1773077438549,-623.76158024,0.000199,2]
[408054141,1773077438559,-1176.83308928,0.000199,2]
[408054142,1773077438568,-500.0,0.00019947,2]
[408054143,1773077438578,-250.0,0.00019947,2]
[408054144,1773077438587,-1001.0,0.00019947,2]
[408054145,1773077438597,-484.0,0.00019947,2]
[408054146,1773077438872,-856.0,0.00019947,2]
[408054147,1773077438905,-500.0,0.00019947,2]
[408054148,1773077438914,-500.0,0.00019947,2]
[408054149,1773077438923,-500.0,0.00019947,2]
[408054150,1773077438932,-200.0,0.00019947,2]
[408054151,1773077438942,-151.0,0.0001996,2]
[408054152,1773077438951,-1279.0,0.00019963,2]
[408054153,1773077438960,-922.0,0.00019963,2]
[408054154,1773077438969,-1213.0,0.00019963,2]
[408054155,1773077438978,-3505.0,0.00019963,2]
[408054156,1773077438989,-250.0,0.00019963,2]
[408054157,1773077438998,-153.45374546,0.0001997,2]
[408054158,1773077439008,-3815.41,0.0001997,2]
[408054159,1773077439018,-500.0,0.00019973,2]
[408054160,1773077439028,-166.67,0.00019983,2]
[408054161,1773077439037,-178.77,0.0001999,2]
[408054162,1773077439047,-178.77,0.0001999,2]
[408054163,1773077439056,-300.0,0.00019999,2]
[408054164,1773077439065,-500.0,0.00019999,2]
[408054165,1773077439075,-500.0,0.00019999,2]
[408054166,1773077439084,-500.0,0.00019999,2]
[408054167,1773077439094,-500.0,0.00019999,2]
[408054168,1773077439103,-500.0,0.00019999,2]
[408054169,1773077439112,-500.0,0.00019999,2]
[408054170,1773077439122,-500.0,0.00019999,2]
[408054171,1773077439131,-500.0,0.00019999,2]
[408054172,1773077439141,-494.83460695,0.00019999,2]
[408054173,1773077439150,-348.36822526,0.00019999,2]
[408054174,1773077439159,-187.11525039,0.00019999,2]
[408054175,1773077439169,-355.79104099,0.00019999,2]
[408054176,1773077439179,-500.0,0.00019999,2]
[408054177,1773077439188,-2308.0,0.0002,2]
[408054178,1773077439197,-2050.0,0.0002,2]
[408054179,1773077439206,-18517.79512092,0.0002,2]
[408054180,1773077439222,-150.0,0.00019833,2]
[408054181,1773077439231,-540.45,0.0002,2]
[408054182,1773077439243,-618.6790189,0.0002,2]
[408054183,1773077439254,-8849.29004784,0.0002,2]
[408054188,1773077440411,-400.0,0.0002,2]
[408054189,1773077440626,-253991.40470883,0.0002,2]
[408054190,1773077440638,-57643.4380398,0.0002,2]
[408054191,1773077440650,-507.04547635,0.0002,2]
[408054192,1773077440680,-664434.30665104,0.0002,2]
[408054193,1773077440945,-30954.44299871,0.0002,2]
[408054220,1773077446141,-1042.0,0.00019963,2]
[408054221,1773077446152,-4929.8786964,0.0002,2]
[408054222,1773077446164,-4958.3066,0.0002,2]
[408054227,1773078051402,163.0,0.00014,2]
[408054228,1773078164605,200.0,0.00014158,2]
[408054229,1773078552163,190.1,0.00014,2]
[408054231,1773078608186,369.087774,7.945e-05,2]
[408054234,1773078631242,-700.05,0.00015843,2]
[408054235,1773078631294,-762.35,0.00015843,2]
[408054236,1773078631304,-506.0,0.00017,2]
[408054237,1773078631313,-2500.0,0.00017025,2]
[408054238,1773078631323,-1200.0,0.00017426,2]
[408054239,1773078631334,-195.0,0.00017427,2]
[408054240,1773078631343,-195.0,0.00017427,2]
[408054241,1773078631353,-310.48220019,0.00017427,2]
[408054242,1773078631363,-300.0,0.00017427,2]
[408054243,1773078631373,-289.41103785,0.00017427,2]
[408054244,1773078631382,-2500.0,0.00017427,2]
[408054245,1773078631392,-2500.0,0.00017427,2]
[408054246,1773078631401,-533.9384128,0.00017427,2]
[408054247,1773078631410,-195.0,0.00017427,2]
[408054248,1773078631420,-195.0,0.00017427,2]
[408054249,1773078631430,-179.49839145,0.00017427,2]
[408054250,1773078631439,-300.0,0.00017427,2]
[408054251,1773078631449,-2500.0,0.00017427,2]
[408054252,1773078631458,-320.40227625,0.000179,2]
[408054253,1773078631468,-320.40227625,0.000179,2]
[408054254,1773078631477,-320.40227625,0.000179,2]
[408054255,1773078631487,-159.25,0.00018,4]
[408054256,1773078631501,-782.0,0.00018268,2]
[408054257,1773078631520,-199.45738296,0.00018268,2]
[408054258,1773078631540,-213.0,0.00018315,2]
[408054259,1773078631553,-332.0,0.00018349,2]
[408054260,1773078631564,-500.0,0.00018356,7]
[408054262,1773078631574,-500.0,0.00018356,7]
[408054264,1773078631584,-500.0,0.00018356,7]
[408054265,1773078631594,-5104.13,0.00018459,2]
[408054267,1773078631603,-534.76608,0.00018463,2]
[408054269,1773078631614,-321.4328,0.00018558,2]
[408054271,1773078631623,-2426.9,0.00018568,2]
[408054273,1773078631633,-164.77,0.00018569,2]
[408054275,1773078631643,-500.0,0.00018579,2]
[408054277,1773078631652,-2000.0,0.00018579,2]
[408054280,1773078631662,-1600.0,0.00018608,2]
[408054282,1773078631672,-500.0,0.00018612,2]
[408054284,1773078631681,-500.0,0.00018689,2]
[408054286,1773078631691,-500.0,0.00018689,2]
[408054288,1773078631699,-500.0,0.00018689,2]
[408054290,1773078631709,-500.0,0.00018689,2]
[408054292,1773078631718,-500.0,0.00018689,2]
[408054294,1773078631727,-500.0,0.00018689,2]
[408054296,1773078631738,-500.0,0.00018689,2]
[408054298,1773078631747,-500.0,0.00018689,2]
[408054300,1773078631757,-500.0,0.00018689,2]
[408054302,1773078631766,-500.0,0.00018689,2]
[408054304,1773078631776,-200.0,0.00018689,2]
[408054305,1773078631790,-500.0,0.00018689,2]
[408054307,1773078631799,-151.0,0.00018689,2]
[408054310,1773078631810,-500.0,0.00018689,2]
[408054311,1773078631819,-151.0,0.00018689,2]
[408054313,1773078631829,-500.0,0.00018689,2]
[408054315,1773078631840,-151.0,0.00018689,2]
[408054316,1773078631849,-500.0,0.00018689,2]
[408054317,1773078631863,-151.0,0.00018689,2]
[408054318,1773078631873,-500.0,0.00018689,2]
[408054319,1773078631882,-151.0,0.00018689,2]
[408054320,1773078631892,-500.0,0.00018689,2]
[408054321,1773078631902,-151.0,0.00018689,2]
[408054322,1773078631912,-500.0,0.00018689,2]
[408054323,1773078631922,-151.0,0.00018689,2]
[408054324,1773078631931,-151.0,0.00018689,2]
[408054325,1773078631941,-500.0,0.00018689,2]
[408054326,1773078631950,-151.0,0.00018689,2]
[408054327,1773078631960,-500.0,0.00018689,2]
[408054328,1773078631969,-151.0,0.00018689,2]
[408054329,1773078631979,-500.0,0.00018689,2]
[408054330,1773078631988,-151.0,0.00018689,2]
[408054331,1773078631997,-1863.64,0.00018747,2]
[408054332,1773078632007,-200.0,0.00018778,2]
[408054333,1773078632016,-506.0,0.000188,3]
[408054334,1773078632026,-3240.0,0.00018839,2]
[408054335,1773078632035,-200.0,0.00018888,2]
[408054336,1773078632046,-1000.0,0.00018999,2]
[408054337,1773078632056,-174.61919141,0.00018999,2]
[408054338,1773078632067,-538.31192165,0.00018999,2]
[408054339,1773078632077,-1680.0,0.00019119,2]
[408054340,1773078632086,-1000.0,0.00019178,2]
[408054341,1773078632096,-1863.64,0.00019215,2]
[408054342,1773078632104,-200.0,0.00019237,2]
[408054343,1773078632114,-1000.0,0.00019433,2]
[408054344,1773078632122,-500.0,0.00019452,7]
[408054345,1773078632141,-500.0,0.00019452,7]
[408054346,1773078632161,-1000.0,0.00019452,2]
[408054347,1773078632182,-2426.9,0.00019496,2]
[408054348,1773078632204,-500.0,0.00019532,2]
[408054349,1773078632227,-500.0,0.00019532,2]
[408054350,1773078632246,-500.0,0.00019532,2]
[408054351,1773078632260,-500.0,0.00019532,2]
[408054352,1773078632272,-500.0,0.00019532,2]
[408054353,1773078632285,-500.0,0.00019532,2]
[408054354,1773078632299,-500.0,0.00019532,2]
[408054355,1773078632311,-500.0,0.00019532,2]
[408054356,1773078632326,-500.0,0.00019532,2]
[408054357,1773078632337,-1000.0,0.00019547,2]
[408054358,1773078632348,-181.08010149,0.00019547,2]
[408054359,1773078632358,-1004.77175934,0.000196,2]
[408054360,1773078632370,-425.0,0.0001967,5]
[408054361,1773078632380,-536.0,0.00019673,2]
[408054362,1773078632390,-150.0,0.00019673,2]
[408054363,1773078632677,-500.0,0.00019673,2]
[408054364,1773078632702,-751.0,0.00019673,2]
[408054365,1773078632714,-642.0,0.00019673,2]
[408054366,1773078632727,-500.0,0.00019673,2]
[408054367,1773078632738,-500.0,0.00019673,2]
[408054368,1773078632749,-500.0,0.00019673,2]
[408054369,1773078632760,-1863.64,0.00019684,2]
[408054370,1773078632771,-1000.0,0.00019726,2]
[408054371,1773078632786,-536.0,0.00019728,2]
[408054372,1773078632797,-186.41553629,0.00019728,2]
[408054373,1773078632808,-500.0,0.00019728,2]
[408054374,1773078632817,-751.0,0.00019728,2]
[408054375,1773078632828,-642.0,0.00019728,2]
[408054376,1773078632837,-500.0,0.00019728,2]
[408054377,1773078632847,-500.0,0.00019728,2]
[408054378,1773078632856,-500.0,0.00019728,2]
[408054379,1773078632867,-164.77,0.0001973,2]
[408054380,1773078632876,-324.57167176,0.00019733,2]
[408054381,1773078632885,-168.0,0.00019746,2]
[408054382,1773078632895,-1000.0,0.00019748,2]
[408054383,1773078632905,-324.5716717,0.00019752,2]
[408054384,1773078632914,-324.5716717,0.0001977,2]
[408054385,1773078632923,-536.0,0.00019783,2]
[408054386,1773078632933,-500.0,0.00019783,2]
[408054387,1773078632942,-751.0,0.00019783,2]
[408054388,1773078632951,-642.0,0.00019783,2]
[408054389,1773078632960,-500.0,0.00019783,2]
[408054390,1773078632970,-500.0,0.00019783,2]
[408054391,1773078632979,-500.0,0.00019783,2]
[408054392,1773078632988,-324.5716717,0.00019789,2]
[408054393,1773078632997,-2000.0,0.000198,2]